Workbook

Sheet Pea
D7: Korteriühistu "Kuldne Kodu"

Sheet Klassid
C2: Rakenduse andmemudel (klassiskeem)

Sheet Korterid
B2: =tiitel -> Korteriühistu "Kuldne Kodu"
B4: Üldandmed korterite kohta
C5: Kokku: | D5: =SUM(Y_pind) -> 1065.1 | E5: =SUM(K_pind) -> 1043.798 | F5: =SUM(Elanike) -> 49
B7: Korter | C7: Omanik | D7: Üldine pindala | E7: Köetav pindala | F7: Elanike
B8: 1 | C8: A. Kask | D8: 69.6 | E8: 68.208 | F8: 2
B9: 2 | C9: H. Tamm | D9: 48.6 | E9: 47.628 | F9: 3
B10: 3 | C10: R. Paju | D10: 61.7 | E10: 60.466 | F10: 3
B11: 4 | C11: V. Saar | D11: 84.2 | E11: 82.516 | F11: 5
B12: 5 | C12: P. Kuusk | D12: 72.5 | E12: 71.05 | F12: 3
B13: 6 | C13: T. Sirel | D13: 48.6 | E13: 47.628 | F13: 2
B14: 7 | C14: M. Lepp | D14: 61.7 | E14: 60.466 | F14: 4
B15: 8 | C15: P. Kukk | D15: 84.2 | E15: 82.516 | F15: 4
B16: 9 | C16: K. Ilves | D16: 72.5 | E16: 71.05 | F16: 2
B17: 10 | C17: O. Vaher | D17: 48.6 | E17: 47.628 | F17: 3
B18: 11 | C18: U. Tamm | D18: 61.7 | E18: 60.466 | F18: 1
B19: 12 | C19: K. Pärn | D19: 84.2 | E19: 82.516 | F19: 3
B20: 13 | C20: S. Mägi | D20: 72.5 | E20: 71.05 | F20: 4
B21: 14 | C21: A. Palk | D21: 48.6 | E21: 47.628 | F21: 4
B22: 15 | C22: L. Mets | D22: 61.7 | E22: 60.466 | F22: 4
B23: 16 | C23: T. Oks | D23: 84.2 | E23: 82.516 | F23: 2

Sheet Tariifid
B2: =tiitel -> Korteriühistu "Kuldne Kodu"
B4: Kulud ja tariifid | C4: jaanuar | D4: 2015
B6: Liik | C6: Tariif | D6: Summa
B7: Haldus | C7: 1.37 | D7: =t_haldus*Sum_Y_pind -> 1459.187
B8: Hooldus | C8: 2.5 | D8: =t_hooldus*Sum_Y_pind -> 2662.75
B9: Üldelekter | C9: =El_sum / Sum_Y_pind -> 0.6628485588 | D9: 706
B10: Küte | C10: =K_sum/Sum_K_Pind -> 11.47348433 | D10: 11976
B11: Vee sojendamine | C11: 46.3 | D11: =S_summa_S -> 1898.3
B12: Vesi ja kanalisatsioon | C12: 21.15 | D12: =S_Summ_V -> 1797.75
B13: Remondifond | C13: 4 | D13: =t_remont*Sum_Y_pind -> 4260.4
C15: Kokku | D15: =SUM(D7:D13) -> 24760.387

Sheet Vesi
B2: =tiitel -> Korteriühistu "Kuldne Kodu"
B4: Vesi | D4: =kuu -> jaanuar | E4: =aasta -> 2015 | G4: Kokku: | H4: =SUM(kulu_S) -> 41 | I4: =SUM(Summa_S) -> 1898.3 | J4: =SUM(kulu_V) -> 85 | K4: =SUM(Summa_V) -> 1797.75
B6: Korter | C6: algnäit_K | D6: lõppnäit_K | E6: kulu_K | F6: algnäit_S | G6: lõppnäit_S | H6: kulu_S | I6: Summa_S | J6: kulu_V | K6: Summa_V
B7: 1 | C7: 3 | D7: 5 | E7: =lõppnäit_K-algnäit_K -> 2 | F7: 3 | G7: 7 | H7: =lõppnäit_S-algnäit_S -> 4 | I7: =kulu_S*t_vesi_soe -> 185.2 | J7: =kulu_K+kulu_S -> 6 | K7: =kulu_V*t_vesi -> 126.9
B8: 2 | C8: 75 | D8: 78 | E8: =lõppnäit_K-algnäit_K -> 3 | F8: 76 | G8: 77 | H8: =lõppnäit_S-algnäit_S -> 1 | I8: =kulu_S*t_vesi_soe -> 46.3 | J8: =kulu_K+kulu_S -> 4 | K8: =kulu_V*t_vesi -> 84.6
B9: 3 | C9: 124 | D9: 126 | E9: 2 | F9: 137 | G9: 140 | H9: 3 | I9: 138.9 | J9: 5 | K9: 105.75
B10: 4 | C10: 36 | D10: 39 | E10: 3 | F10: 55 | G10: 57 | H10: 2 | I10: 92.6 | J10: 5 | K10: 105.75
B11: 5 | C11: 152 | D11: 155 | E11: 3 | F11: 168 | G11: 171 | H11: 3 | I11: 138.9 | J11: 6 | K11: 126.9
B12: 6 | C12: 33 | D12: 34 | E12: 1 | F12: 36 | G12: 39 | H12: 3 | I12: 138.9 | J12: 4 | K12: 84.6
B13: 7 | C13: 58 | D13: 59 | E13: 1 | F13: 30 | G13: 31 | H13: 1 | I13: 46.3 | J13: 2 | K13: 42.3
B14: 8 | C14: 6 | D14: 9 | E14: 3 | F14: 5 | G14: 8 | H14: 3 | I14: 138.9 | J14: 6 | K14: 126.9
B15: 9 | C15: 90 | D15: 93 | E15: 3 | F15: 111 | G15: 114 | H15: 3 | I15: 138.9 | J15: 6 | K15: 126.9
B16: 10 | C16: 86 | D16: 88 | E16: 2 | F16: 79 | G16: 81 | H16: 2 | I16: 92.6 | J16: 4 | K16: 84.6
B17: 11 | C17: 30 | D17: 31 | E17: 1 | F17: 30 | G17: 33 | H17: 3 | I17: 138.9 | J17: 4 | K17: 84.6
B18: 12 | C18: 55 | D18: 59 | E18: 4 | F18: 67 | G18: 68 | H18: 1 | I18: 46.3 | J18: 5 | K18: 105.75
B19: 13 | C19: 104 | D19: 107 | E19: 3 | F19: 125 | G19: 128 | H19: 3 | I19: 138.9 | J19: 6 | K19: 126.9
B20: 14 | C20: 21 | D20: 25 | E20: 4 | F20: 22 | G20: 25 | H20: 3 | I20: 138.9 | J20: 7 | K20: 148.05
B21: 15 | C21: 101 | D21: 105 | E21: 4 | F21: 111 | G21: 114 | H21: 3 | I21: 138.9 | J21: 7 | K21: 148.05
B22: 16 | C22: 62 | D22: 67 | E22: 5 | F22: 76 | G22: 79 | H22: 3 | I22: 138.9 | J22: 8 | K22: 169.2

Sheet Arve
B2: =tiitel -> Korteriühistu "Kuldne Kodu" | E2: 1200
C3: Pank | D3: Konto
C4: Hansapank | D4: 20301871287
B5: KOMMUNAALTEENUSTE ARVE | D5: =baas+Korter -> 1201
B6: Kuu | C6: =kuu -> jaanuar | D6: =aasta -> 2015
B7: Korter | C7: 1 | D7: Üldpind | E7: =INDEX(Y_pind, Korter) -> 69.6
B8: Omanik | C8: =INDEX(Omanik,Korter) -> A. Kask | D8: Köetav pind | E8: =INDEX(K_pind, Korter) -> 68.208
B10: Kulu liik | C10: Tariif | D10: Kogus | E10: Summa
B11: =Tariifid!B7 -> Haldus | C11: =Tariifid!C7 -> 1.37 | D11: =Üldpind -> 69.6 | E11: =Tariif*Kogus -> 95.352
B12: =Tariifid!B8 -> Hooldus | C12: =Tariifid!C8 -> 2.5 | D12: =Üldpind -> 69.6 | E12: =Tariif*Kogus -> 174
B13: =Tariifid!B9 -> Üldelekter | C13: =Tariifid!C9 -> 0.6628485588 | D13: =Üldpind -> 69.6 | E13: 46.13425969
B14: =Tariifid!B10 -> Küte | C14: =Tariifid!C10 -> 11.47348433 | D14: =Köetav_pind -> 68.208 | E14: 782.5834194
B15: =Tariifid!B11 -> Vee sojendamine | C15: =Tariifid!C11 -> 46.3 | D15: =INDEX(kulu_S, Korter) -> 4 | E15: 185.2
B16: =Tariifid!B12 -> Vesi ja kanalisatsioon | C16: =Tariifid!C12 -> 21.15 | D16: =INDEX(kulu_V, Korter) -> 6 | E16: 126.9
B17: =Tariifid!B13 -> Remondifond | C17: =Tariifid!C13 -> 4 | D17: =Üldpind -> 69.6 | E17: 278.4
D19: Kokku | E19: =SUM(Summa) -> 1688.569679

Sheet Korterite_kulud
B2: =tiitel -> Korteriühistu "Kuldne Kodu"
F3: =kuu -> jaanuar | G3: =aasta -> 2015
B4: Kulude jaotamine
B6: Kokku: | C6: =SUM(Pind) -> 1065.1 | D6: =SUM(D9:D24) -> 1459.187 | E6: =SUM(E9:E24) -> 2662.75 | F6: =SUM(F9:F24) -> 706 | G6: =SUM(G9:G24) -> 11976 | H6: =SUM(H9:H24) -> 1898.3 | I6: =SUM(D6:H6) -> 18702.237 | J6: =SUM(J9:J24) -> 4260.4 | K6: =SUM(K9:K24) -> 24760.387
B8: Korter | C8: Pind | D8: Haldus | E8: Hooldus | F8: Üld- elekter | G8: Küte | H8: Soe vesi | I8: Külm vesi | J8: Remont | K8: Kokku
B9: 1 | C9: =Korterid!D8 -> 69.6 | D9: =t_haldus*Pind -> 95.352 | E9: =t_hooldus*Pind -> 174 | F9: =t_elek*Pind -> 46.13425969 | G9: =t_küte*INDEX(K_pind, Korter) -> 782.5834194 | H9: =INDEX(Summa_S, Korter) -> 185.2 | I9: =INDEX(Summa_V, Korter) -> 126.9 | J9: =t_remont*Pind -> 278.4 | K9: =SUM(D9:J9) -> 1688.569679
B10: 2 | C10: =Korterid!D9 -> 48.6 | D10: =t_haldus*Pind -> 66.582 | E10: =t_hooldus*INDEX(Y_pind, Korter) -> 121.5 | F10: =t_elek*Pind -> 32.21443996 | G10: =t_küte*INDEX(K_pind, Korter) -> 546.4591118 | H10: =INDEX(Summa_S, Korter) -> 46.3 | I10: =INDEX(Summa_V, Korter) -> 84.6 | J10: =t_remont*Pind -> 194.4 | K10: =SUM(D10:J10) -> 1092.055552
B11: 3 | C11: =Korterid!D10 -> 61.7 | D11: 84.529 | E11: 154.25 | F11: 40.89775608 | G11: 693.7557037 | H11: 138.9 | I11: 105.75 | J11: 246.8 | K11: 1464.88246
B12: 4 | C12: =Korterid!D11 -> 84.2 | D12: 115.354 | E12: 210.5 | F12: 55.81184865 | G12: 946.7460332 | H12: 92.6 | I12: 105.75 | J12: 336.8 | K12: 1863.561882
B13: 5 | C13: =Korterid!D12 -> 72.5 | D13: 99.325 | E13: 181.25 | F13: 48.05652051 | G13: 815.1910619 | H13: 138.9 | I13: 126.9 | J13: 290 | K13: 1699.622582
B14: 6 | C14: =Korterid!D13 -> 48.6 | D14: 66.582 | E14: 121.5 | F14: 32.21443996 | G14: 546.4591118 | H14: 138.9 | I14: 84.6 | J14: 194.4 | K14: 1184.655552
B15: 7 | C15: =Korterid!D14 -> 61.7 | D15: 84.529 | E15: 154.25 | F15: 40.89775608 | G15: 693.7557037 | H15: 46.3 | I15: 42.3 | J15: 246.8 | K15: 1308.83246
B16: 8 | C16: =Korterid!D15 -> 84.2 | D16: 115.354 | E16: 210.5 | F16: 55.81184865 | G16: 946.7460332 | H16: 138.9 | I16: 126.9 | J16: 336.8 | K16: 1931.011882
B17: 9 | C17: =Korterid!D16 -> 72.5 | D17: 99.325 | E17: 181.25 | F17: 48.05652051 | G17: 815.1910619 | H17: 138.9 | I17: 126.9 | J17: 290 | K17: 1699.622582
B18: 10 | C18: =Korterid!D17 -> 48.6 | D18: 66.582 | E18: 121.5 | F18: =t_elek*Pind -> 32.21443996 | G18: 546.4591118 | H18: 92.6 | I18: 84.6 | J18: 194.4 | K18: 1138.355552
B19: 11 | C19: =Korterid!D18 -> 61.7 | D19: 84.529 | E19: 154.25 | F19: 40.89775608 | G19: 693.7557037 | H19: 138.9 | I19: 84.6 | J19: 246.8 | K19: 1443.73246
B20: 12 | C20: =Korterid!D19 -> 84.2 | D20: 115.354 | E20: 210.5 | F20: 55.81184865 | G20: 946.7460332 | H20: 46.3 | I20: 105.75 | J20: 336.8 | K20: 1817.261882
B21: 13 | C21: =Korterid!D20 -> 72.5 | D21: 99.325 | E21: 181.25 | F21: 48.05652051 | G21: 815.1910619 | H21: 138.9 | I21: 126.9 | J21: 290 | K21: 1699.622582
B22: 14 | C22: =Korterid!D21 -> 48.6 | D22: 66.582 | E22: 121.5 | F22: 32.21443996 | G22: 546.4591118 | H22: 138.9 | I22: 148.05 | J22: 194.4 | K22: 1248.105552
B23: 15 | C23: =Korterid!D22 -> 61.7 | D23: 84.529 | E23: 154.25 | F23: 40.89775608 | G23: 693.7557037 | H23: 138.9 | I23: 148.05 | J23: 246.8 | K23: 1507.18246
B24: 16 | C24: =Korterid!D23 -> 84.2 | D24: 115.354 | E24: 210.5 | F24: 55.81184865 | G24: 946.7460332 | H24: 138.9 | I24: 169.2 | J24: 336.8 | K24: 1973.311882

Sheet Skeem
H2: Rakenduse Klassid ja objektide omidused
